[Event "DVM U12w 2023"]
[Site "Magdeburg"]
[Date "2023.12.27"]
[Round "1"]
[White "Schmegel, Alina"]
[Black "Wilke, Ronja"]
[Result "0-1"]
[WhiteElo "892"]
[BlackElo "1224"]
[PlyCount "30"]
[EventDate "2022.12.27"]
[EventType "team-tourn"]
[EventRounds "7"]
[EventCountry "GER"]
[TimeControl "40/5400+30:1800+30"]
[WhiteClock "1:31:12"]
[BlackClock "1:30:09"]

1. e4 {[%emt 0:00:03]} c6 {[%emt 0:00:12]} 2. Nc3 {[%emt 0:00:11]} d5 {[%emt 0:00:08]} 3. exd5 {[%emt 0:00:58]} cxd5 {[%emt 0:00:05]} 4. Bb5+ {[%emt 0:00:06]} Bd7 {[%emt 0:00:31]} 5. Ba4 {[%emt 0:00:33]} Bxa4 {[%emt 0:00:16]} 6. Nxa4 {[%emt 0:00:07]} Nc6 {[%emt 0:00:21]} 7. Nf3 {[%emt 0:00:10]} e6 {[%emt 0:00:43]} 8. a3 {[%emt 0:00:17]} Be7 {[%emt 0:00:37]} 9. O-O {[%emt 0:00:34]} Nf6 {[%emt 0:00:10]} 10. d3 {[%emt 0:00:08]} O-O {[%emt 0:00:16]} 11. Qe1 {[%emt 0:00:57]} Qd6 {[%emt 0:01:17]} 12. d4 {[%emt 0:00:20]} Ng4 {[%emt 0:02:16]} 13. Qe2 {[%emt 0:01:22]} Nxd4 {[%emt 0:00:17]} 14. Qd1 {[%emt 0:00:38]} Nxf3+ {[%emt 0:00:12]} 15. Qxf3 {[%emt 0:00:24]} Qxh2# {[%emt 0:00:44] normal} 0-1

[Event "DVM U12w 2023"]
[Site "Magdeburg"]
[Date "2023.12.27"]
[Round "1"]
[White "Gelbach, Julietta"]
[Black "Ramien, Eva"]
[Result "0-1"]
[WhiteElo "887"]
[BlackElo "1324"]
[PlyCount "46"]
[EventDate "2022.12.27"]
[EventType "team-tourn"]
[EventRounds "7"]
[EventCountry "GER"]
[TimeControl "40/5400+30:1800+30"]
[WhiteClock "1:05:22"]
[BlackClock "0:57:31"]

1. e4 {[%emt 0:00:04]} e5 {[%emt 0:00:10]} 2. Nf3 {[%emt 0:00:37]} Nc6 {[%emt 0:00:15]} 3. Bb5 {[%emt 0:00:17]} Nge7 {[%emt 0:01:04]} 4. O-O {[%emt 0:01:43]} d6 {[%emt 0:00:28]} 5. Qe1 {[%emt 0:04:05]} Bg4 {[%emt 0:01:15]} 6. Qe3 {[%emt 0:01:44]} a6 {[%emt 0:01:20]} 7. Bc4 {[%emt 0:01:16]} g6 {[%emt 0:01:35]} 8. Ng5 {[%emt 0:01:30]} d5 {[%emt 0:02:02]} 9. Bb3 {[%emt 0:01:18]} Bg7 {[%emt 0:03:06]} 10. c4 {[%emt 0:01:44]} d4 {[%emt 0:04:57]} 11. Qg3 {[%emt 0:02:08]} Bd7 {[%emt 0:02:09]} 12. c5 {[%emt 0:01:21]} O-O {[%emt 0:00:29]} 13. Qh4 {[%emt 0:01:43]} h6 {[%emt 0:04:26]} 14. Nf3 {[%emt 0:03:06]} d3 {[%emt 0:04:03]} 15. Nc3 {[%emt 0:01:41]} Nc8 {[%emt 0:06:57]} 16. Qxd8 {[%emt 0:02:02]} Rxd8 {[%emt 0:00:39]} 17. Nd5 {[%emt 0:00:36]} N8a7 {[%emt 0:03:36]} 18. Ba4 {[%emt 0:02:31]} b5 {[%emt 0:00:28]} 19. Nxc7 {[%emt 0:01:04]} Rac8 {[%emt 0:01:04]} 20. Nxa6 {[%emt 0:00:54]} bxa4 {[%emt 0:00:00]} 21. b3 {[%emt 0:00:51]} Na5 {[%emt 0:02:20]} 22. b4 {[%emt 0:00:55]} Rc6 {[%emt 0:01:36]} 23. bxa5 {[%emt 0:03:28]} Rxa6 {[%emt 0:00:30] normal} 0-1

[Event "DVM U12w 2023"]
[Site "Magdeburg"]
[Date "2023.12.27"]
[Round "1"]
[White "Goy, Isabella"]
[Black "Zhou, Leyi Charlotte"]
[Result "0-1"]
[WhiteElo "880"]
[BlackElo "1335"]
[PlyCount "82"]
[EventDate "2022.12.27"]
[EventType "team-tourn"]
[EventRounds "7"]
[EventCountry "GER"]
[TimeControl "40/5400+30:1800+30"]
[WhiteClock "1:09:06"]
[BlackClock "1:24:45"]

1. e4 {[%emt 0:00:03]} e5 {[%emt 0:00:02]} 2. Nf3 {[%emt 0:00:12]} Nc6 {[%emt 0:00:14]} 3. Nc3 {[%emt 0:00:22]} Nf6 {[%emt 0:00:15]} 4. Bd3 {[%emt 0:00:31]} Bc5 {[%emt 0:00:55]} 5. O-O {[%emt 0:00:13]} d6 {[%emt 0:00:23]} 6. Re1 {[%emt 0:00:25]} O-O {[%emt 0:00:14]} 7. Na4 {[%emt 0:00:59]} Bb6 {[%emt 0:02:03]} 8. Nxb6 {[%emt 0:00:17]} axb6 {[%emt 0:00:10]} 9. Bb5 {[%emt 0:02:37]} Bg4 {[%emt 0:00:39]} 10. Be2 {[%emt 0:00:44]} Nxe4 {[%emt 0:02:04]} 11. Nd4 {[%emt 0:03:05]} Bxe2 {[%emt 0:00:42]} 12. Nxc6 {[%emt 0:00:30]} bxc6 {[%emt 0:00:21]} 13. Qxe2 {[%emt 0:00:18]} d5 {[%emt 0:00:46]} 14. d3 {[%emt 0:00:21]} Nf6 {[%emt 0:00:41]} 15. Bg5 {[%emt 0:00:48]} Re8 {[%emt 0:00:40]} 16. d4 {[%emt 0:03:27]} exd4 {[%emt 0:01:36]} 17. Qxe8+ {[%emt 0:00:21]} Qxe8 {[%emt 0:00:38]} 18. Rxe8+ {[%emt 0:00:39]} Rxe8 {[%emt 0:00:05]} 19. Bxf6 {[%emt 0:00:20]} gxf6 {[%emt 0:00:28]} 20. h3 {[%emt 0:00:27]} c5 {[%emt 0:00:30]} 21. Rd1 {[%emt 0:01:15]} Kg7 {[%emt 0:00:26]} 22. a4 {[%emt 0:04:23]} Re2 {[%emt 0:00:59]} 23. Rc1 {[%emt 0:00:23]} c4 {[%emt 0:02:47]} 24. Kf1 {[%emt 0:00:15]} d3 {[%emt 0:03:57]} 25. cxd3 {[%emt 0:00:19]} cxd3 {[%emt 0:00:08]} 26. b3 {[%emt 0:00:26]} Rb2 {[%emt 0:00:34]} 27. f3 {[%emt 0:01:10]} c5 {[%emt 0:00:48]} 28. Rc3 {[%emt 0:01:56]} Rb1+ {[%emt 0:00:21]} 29. Kf2 {[%emt 0:00:19]} d2 {[%emt 0:00:10]} 30. Rd3 {[%emt 0:00:45]} d1=Q {[%emt 0:00:16]} 31. Rxd1 {[%emt 0:00:11]} Rxd1 {[%emt 0:00:06]} 32. Ke2 {[%emt 0:00:18]} Rb1 {[%emt 0:00:14]} 33. b4 {[%emt 0:02:38]} Rxb4 {[%emt 0:00:12]} 34. a5 {[%emt 0:00:33]} bxa5 {[%emt 0:00:04]} 35. Kd3 {[%emt 0:00:26]} a4 {[%emt 0:00:10]} 36. Kc3 {[%emt 0:01:55]} a3 {[%emt 0:00:08]} 37. Kd3 {[%emt 0:04:12]} a2 {[%emt 0:00:15]} 38. Ke3 {[%emt 0:00:56]} a1=Q {[%emt 0:00:17]} 39. Kd3 {[%emt 0:00:31]} Rb3+ {[%emt 0:00:18]} 40. Ke2 {[%emt 0:01:26]} Qa2+ {[%emt 0:00:09]} 41. Ke1 {[%emt 0:30:58]} Rb1# {[%emt 0:30:30] normal} 0-1

[Event "DVM U12w 2023"]
[Site "Magdeburg"]
[Date "2023.12.27"]
[Round "1"]
[White "Satheesh, Dharshini"]
[Black "Haas, Valentina"]
[Result "1-0"]
[WhiteElo "871"]
[BlackElo "1010"]
[PlyCount "43"]
[EventDate "2022.12.27"]
[EventType "team-tourn"]
[EventRounds "7"]
[EventCountry "GER"]
[TimeControl "40/5400+30:1800+30"]
[WhiteClock "1:09:41"]
[BlackClock "1:23:21"]

1. e4 {[%emt 0:00:04]} e5 {[%emt 0:00:07]} 2. Nf3 {[%emt 0:00:11]} Nf6 {[%emt 0:00:07]} 3. Nxe5 {[%emt 0:00:23]} Nc6 {[%emt 0:00:13]} 4. Nxc6 {[%emt 0:00:57]} dxc6 {[%emt 0:00:08]} 5. e5 {[%emt 0:00:20]} Ng4 {[%emt 0:00:25]} 6. d4 {[%emt 0:00:35]} c5 {[%emt 0:00:59]} 7. h3 {[%emt 0:02:44]} Nh6 {[%emt 0:01:29]} 8. d5 {[%emt 0:01:20]} Nf5 {[%emt 0:01:53]} 9. Nc3 {[%emt 0:01:23]} Be7 {[%emt 0:01:30]} 10. Bd3 {[%emt 0:01:31]} O-O {[%emt 0:01:37]} 11. O-O {[%emt 0:01:02]} Nh4 {[%emt 0:01:02]} 12. Qh5 {[%emt 0:04:27]} h6 {[%emt 0:00:39]} 13. Bxh6 {[%emt 0:03:37]} f6 {[%emt 0:01:40]} 14. Qxh4 {[%emt 0:04:23]} Rf7 {[%emt 0:00:34]} 15. e6 {[%emt 0:01:38]} f5 {[%emt 0:01:24]} 16. Qg3 {[%emt 0:01:12]} Bd6 {[%emt 0:01:24]} 17. exf7+ {[%emt 0:00:36]} Kxf7 {[%emt 0:00:15]} 18. Qxg7+ {[%emt 0:00:33]} Ke8 {[%emt 0:00:52]} 19. Rfe1+ {[%emt 0:02:18]} Be7 {[%emt 0:00:23]} 20. Qh8+ {[%emt 0:01:49]} Kd7 {[%emt 0:00:30]} 21. Bxf5+ {[%emt 0:00:16]} Kd6 {[%emt 0:00:28]} 22. Qe5# {[%emt 0:00:53] normal} 1-0

[Event "DVM U12w 2023"]
[Site "Magdeburg"]
[Date "2023.12.27"]
[Round "1"]
[White "Seyedfakhari, Elena"]
[Black "Wieckowicz, Bui Havy"]
[Result "0-1"]
[WhiteElo "860"]
[BlackElo "1175"]
[PlyCount "104"]
[EventDate "2022.12.27"]
[EventType "team-tourn"]
[EventRounds "7"]
[EventCountry "GER"]
[TimeControl "40/5400+30:1800+30"]
[WhiteClock "1:26:05"]
[BlackClock "0:53:04"]

1. e4 {[%emt 0:00:02]} c5 {[%emt 0:00:07]} 2. c3 {[%emt 0:00:10]} Nc6 {[%emt 0:00:22]} 3. Nf3 {[%emt 0:00:17]} d6 {[%emt 0:00:15]} 4. Be2 {[%emt 0:00:23]} Nf6 {[%emt 0:00:10]} 5. O-O {[%emt 0:00:26]} e6 {[%emt 0:00:09]} 6. d3 {[%emt 0:00:19]} Be7 {[%emt 0:00:09]} 7. Bf4 {[%emt 0:00:25]} Qc7 {[%emt 0:00:38]} 8. Nbd2 {[%emt 0:00:11]} a6 {[%emt 0:00:18]} 9. Qc2 {[%emt 0:00:22]} b5 {[%emt 0:00:11]} 10. Rfe1 {[%emt 0:00:34]} O-O {[%emt 0:01:55]} 11. Rad1 e5 {[%emt 0:00:27]} 12. Be3 {[%emt 0:00:39]} Be6 {[%emt 0:03:07]} 13. a3 {[%emt 0:00:14]} Rfe8 {[%emt 0:01:39]} 14. c4 {[%emt 0:00:36]} Rab8 {[%emt 0:02:02]} 15. cxb5 {[%emt 0:00:21]} axb5 {[%emt 0:02:13]} 16. Ng5 {[%emt 0:00:44]} Bg4 {[%emt 0:02:06]} 17. Bxg4 {[%emt 0:00:30]} Nxg4 {[%emt 0:00:35]} 18. Ngf3 {[%emt 0:00:36]} b4 {[%emt 0:04:02]} 19. axb4 {[%emt 0:00:35]} Nxb4 {[%emt 0:01:29]} 20. Qc4 {[%emt 0:00:53]} Red8 {[%emt 0:04:00]} 21. Ng5 {[%emt 0:00:41]} d5 {[%emt 0:03:32]} 22. exd5 {[%emt 0:00:31]} Rxd5 {[%emt 0:01:20]} 23. Ngf3 {[%emt 0:01:04]} Rbd8 {[%emt 0:02:05]} 24. Qxg4 {[%emt 0:00:45]} Nxd3 {[%emt 0:03:56]} 25. Bh6 {[%emt 0:00:35]} g6 {[%emt 0:04:05]} 26. Re2 {[%emt 0:01:11]} f5 {[%emt 0:02:51]} 27. Qc4 {[%emt 0:00:49]} Nxb2 {[%emt 0:01:07]} 28. Qc1 {[%emt 0:01:02]} Nxd1 {[%emt 0:00:29]} 29. Qxd1 {[%emt 0:00:24]} e4 {[%emt 0:01:26]} 30. Qa1 {[%emt 0:00:57]} Bf8 {[%emt 0:02:21]} 31. Ng5 {[%emt 0:00:54]} Qe7 {[%emt 0:04:26]} 32. Nh3 {[%emt 0:02:13]} Bxh6 {[%emt 0:00:00]} 33. Nc4 {[%emt 0:01:04]} Rd1+ {[%emt 0:00:00]} 34. Re1 {[%emt 0:00:37]} Rxa1 {[%emt 0:00:00]} 35. Rxa1 {[%emt 0:00:10]} Bg7 {[%emt 0:00:00]} 36. Rc1 {[%emt 0:00:28]} Qe6 {[%emt 0:00:00]} 37. Ne3 {[%emt 0:00:27]} Bb2 {[%emt 0:00:12]} 38. Rb1 {[%emt 0:01:04]} Bd4 {[%emt 0:00:39]} 39. Nf4 {[%emt 0:00:41]} Qe5 {[%emt 0:01:46]} 40. g3 {[%emt 0:00:43]} g5 {[%emt 0:01:17]} 41. Nc4 {[%emt 0:30:07]} Bxf2+ {[%emt 0:31:02]} 42. Kxf2 {[%emt 0:00:21]} Qd4+ {[%emt 0:00:58]} 43. Kf1 {[%emt 0:00:14]} gxf4 {[%emt 0:00:47]} 44. Nb6 {[%emt 0:00:41]} Qd3+ {[%emt 0:00:46]} 45. Kg2 {[%emt 0:00:01]} Qxb1 {[%emt 0:00:24]} 46. Nc4 {[%emt 0:01:33]} Qc2+ {[%emt 0:00:17]} 47. Nd2 {[%emt 0:00:38]} Qxd2+ {[%emt 0:00:00]} 48. Kh3 {[%emt 0:00:16]} fxg3 {[%emt 0:00:25]} 49. Kxg3 {[%emt 0:00:11]} Qg5+ {[%emt 0:00:09]} 50. Kf2 {[%emt 0:00:45]} Rd2+ {[%emt 0:00:14]} 51. Kf1 {[%emt 0:00:43]} Qg2+ {[%emt 0:00:12]} 52. Ke1 {[%emt 0:00:18]} Qe2# {[%emt 0:00:46] normal} 0-1

[Event "DVM U12w 2023"]
[Site "Magdeburg"]
[Date "2023.12.27"]
[Round "2"]
[White "Schirmbeck, Lilian"]
[Black "Shynkar, Daria"]
[Result "1-0"]
[WhiteElo "1585"]
[BlackElo "1316"]
[PlyCount "21"]
[EventDate "2022.12.27"]
[EventType "team-tourn"]
[EventRounds "7"]
[EventCountry "GER"]
[TimeControl "40/5400+30:1800+30"]
[WhiteClock "0:54:59"]
[BlackClock "1:05:50"]

1. d4 {[%emt 0:00:02]} Nf6 {[%emt 0:00:04]} 2. Bf4 {[%emt 0:00:06]} d5 {[%emt 0:00:04]} 3. Nf3 {[%emt 0:00:05]} c5 {[%emt 0:00:06]} 4. dxc5 {[%emt 0:00:55]} Bf5 {[%emt 0:00:52]} 5. e3 {[%emt 0:00:09]} e6 {[%emt 0:00:08]} 6. Bxb8 {[%emt 0:00:32]} Rxb8 {[%emt 0:04:54]} 7. Bb5+ {[%emt 0:00:23]} Ke7 {[%emt 0:02:49]} 8. O-O {[%emt 0:16:58]} Qc7 {[%emt 0:09:56]} 9. Nd4 {[%emt 0:04:30]} Bg6 {[%emt 0:04:03]} 10. b4 {[%emt 0:13:47]} a6 {[%emt 0:06:44]} 11. Be2 {[%emt 0:03:34] normal} 1-0

[Event "DVM U12w 2023"]
[Site "Magdeburg"]
[Date "2023.12.27"]
[Round "2"]
[White "Hofmeier, Viktoria"]
[Black "Stepanova, Anhelina"]
[Result "1/2-1/2"]
[WhiteElo "1408"]
[BlackElo "1172"]
[PlyCount "76"]
[EventDate "2022.12.27"]
[EventType "team-tourn"]
[EventRounds "7"]
[EventCountry "GER"]
[TimeControl "40/5400+30:1800+30"]
[WhiteClock "1:05:41"]
[BlackClock "1:11:15"]

1. e4 {[%emt 0:00:08]} e6 {[%emt 0:00:56]} 2. d4 {[%emt 0:00:21]} d5 {[%emt 0:00:45]} 3. exd5 {[%emt 0:00:25]} exd5 {[%emt 0:01:17]} 4. Bd3 {[%emt 0:00:53]} Bd6 {[%emt 0:00:35]} 5. Nf3 {[%emt 0:00:57]} Nf6 {[%emt 0:00:41]} 6. O-O {[%emt 0:00:55]} O-O {[%emt 0:00:39]} 7. Be3 {[%emt 0:01:12]} Be6 {[%emt 0:00:42]} 8. c3 {[%emt 0:00:45]} Nbd7 {[%emt 0:02:58]} 9. Nbd2 {[%emt 0:01:21]} c6 {[%emt 0:00:19]} 10. Qc2 {[%emt 0:00:40]} Qc7 {[%emt 0:00:30]} 11. Rfe1 {[%emt 0:02:12]} Rfe8 {[%emt 0:00:26]} 12. Rac1 {[%emt 0:03:37]} Rac8 {[%emt 0:01:21]} 13. b4 {[%emt 0:02:32]} b5 {[%emt 0:01:48]} 14. a4 {[%emt 0:01:36]} a6 {[%emt 0:02:12]} 15. Ra1 {[%emt 0:03:17]} Ra8 {[%emt 0:00:54]} 16. Ra2 {[%emt 0:00:44]} Ra7 {[%emt 0:03:52]} 17. Rea1 {[%emt 0:00:39]} Rea8 {[%emt 0:01:39]} 18. axb5 {[%emt 0:00:27]} axb5 {[%emt 0:02:03]} 19. Rxa7 {[%emt 0:00:28]} Rxa7 {[%emt 0:00:07]} 20. Rxa7 {[%emt 0:00:16]} Qxa7 {[%emt 0:00:05]} 21. Ng5 {[%emt 0:00:53]} Nf8 {[%emt 0:00:41]} 22. Nxe6 {[%emt 0:00:25]} Nxe6 {[%emt 0:00:27]} 23. Nb3 {[%emt 0:00:39]} Qc7 {[%emt 0:00:53]} 24. g3 {[%emt 0:01:00]} g6 {[%emt 0:03:31]} 25. Qa2 {[%emt 0:06:41]} Qb8 {[%emt 0:02:35]} 26. Qa6 {[%emt 0:00:58]} Qc7 {[%emt 0:00:44]} 27. Na5 {[%emt 0:00:22]} Nd8 {[%emt 0:00:26]} 28. Qa8 {[%emt 0:01:00]} Nd7 {[%emt 0:01:20]} 29. Nxc6 {[%emt 0:02:01]} Be7 {[%emt 0:00:30]} 30. Nxd8 {[%emt 0:00:39]} Nb6 {[%emt 0:00:51]} 31. Ne6+ {[%emt 0:01:24]} Nxa8 {[%emt 0:00:07]} 32. Nxc7 {[%emt 0:00:03]} Nxc7 {[%emt 0:00:05]} 33. Bf4 {[%emt 0:00:16]} Ne6 {[%emt 0:00:32]} 34. Bb8 {[%emt 0:00:46]} Kf8 {[%emt 0:00:20]} 35. Bxb5 {[%emt 0:00:32]} Ng5 {[%emt 0:00:16]} 36. Bf4 {[%emt 0:00:33]} Ne4 {[%emt 0:00:07]} 37. Bc6 {[%emt 0:00:31]} Nxc3 {[%emt 0:00:27]} 38. Kf1 {[%emt 0:01:41]} Bxb4 {[%emt 0:00:34] normal} 1/2-1/2

[Event "DVM U12w 2023"]
[Site "Magdeburg"]
[Date "2023.12.27"]
[Round "2"]
[White "Rafikova, Ailin"]
[Black "Briese, Sophie"]
[Result "1-0"]
[WhiteElo "1399"]
[BlackElo "1207"]
[PlyCount "31"]
[EventDate "2022.12.27"]
[EventType "team-tourn"]
[EventRounds "7"]
[EventCountry "GER"]
[TimeControl "40/5400+30:1800+30"]
[WhiteClock "0:42:51"]
[BlackClock "1:12:17"]

1. e4 {[%emt 0:00:07]} c5 {[%emt 0:00:00]} 2. Nc3 {[%emt 0:00:32]} Nc6 {[%emt 0:00:24]} 3. g3 {[%emt 0:00:23]} g6 {[%emt 0:00:11]} 4. Bg2 {[%emt 0:00:37]} Bg7 {[%emt 0:00:44]} 5. d3 {[%emt 0:00:38]} d6 {[%emt 0:01:37]} 6. Nge2 {[%emt 0:01:20]} e6 {[%emt 0:01:03]} 7. Be3 {[%emt 0:03:40]} Nd4 {[%emt 0:01:03]} 8. Qd2 {[%emt 0:01:24]} Ne7 {[%emt 0:00:52]} 9. Nd1 {[%emt 0:02:49]} Rb8 {[%emt 0:01:54]} 10. c3 {[%emt 0:00:56]} Ndc6 {[%emt 0:04:04]} 11. Bh6 {[%emt 0:02:50]} O-O {[%emt 0:01:21]} 12. h4 {[%emt 0:08:44]} Ne5 {[%emt 0:02:22]} 13. h5 {[%emt 0:19:28]} Ng4 {[%emt 0:07:04]} 14. Bxg7 {[%emt 0:03:27]} Kxg7 {[%emt 0:00:42]} 15. hxg6 {[%emt 0:03:31]} fxg6 {[%emt 0:02:22]} 16. f3 {[%emt 0:05:13] normal} 1-0

[Event "DVM U12w 2023"]
[Site "Magdeburg"]
[Date "2023.12.27"]
[Round "2"]
[White "John, Linnea"]
[Black "Winkler, Frida"]
[Result "1-0"]
[WhiteElo "1393"]
[BlackElo "1298"]
[PlyCount "41"]
[EventDate "2022.12.27"]
[EventType "team-tourn"]
[EventRounds "7"]
[EventCountry "GER"]
[TimeControl "40/5400+30:1800+30"]
[WhiteClock "0:56:03"]
[BlackClock "1:03:22"]

1. e4 {[%emt 0:00:03]} e5 {[%emt 0:00:06]} 2. Nf3 {[%emt 0:00:19]} Nc6 {[%emt 0:00:08]} 3. d4 {[%emt 0:00:05]} exd4 {[%emt 0:00:08]} 4. Nxd4 {[%emt 0:00:07]} Qf6 {[%emt 0:00:09]} 5. Nxc6 {[%emt 0:00:41]} Bc5 {[%emt 0:00:06]} 6. Qf3 {[%emt 0:00:27]} bxc6 {[%emt 0:00:06]} 7. Bc4 {[%emt 0:03:55]} d6 {[%emt 0:01:16]} 8. Nc3 {[%emt 0:01:50]} Qxf3 {[%emt 0:01:42]} 9. gxf3 {[%emt 0:00:08]} Ne7 {[%emt 0:00:14]} 10. Be3 {[%emt 0:03:50]} Bb6 {[%emt 0:01:46]} 11. Rg1 {[%emt 0:01:46]} O-O {[%emt 0:05:23]} 12. O-O-O {[%emt 0:04:25]} Bb7 {[%emt 0:06:42]} 13. h4 {[%emt 0:07:12]} Rfd8 {[%emt 0:02:16]} 14. Bh6 {[%emt 0:07:20]} Ng6 {[%emt 0:01:50]} 15. Bg5 {[%emt 0:04:27]} Rd7 {[%emt 0:06:41]} 16. h5 {[%emt 0:01:53]} Ne5 {[%emt 0:00:38]} 17. Bf6 {[%emt 0:04:34]} Nxc4 {[%emt 0:00:23]} 18. Rxg7+ {[%emt 0:00:12]} Kf8 {[%emt 0:06:58]} 19. Rxh7 {[%emt 0:01:32]} Be3+ {[%emt 0:00:14]} 20. fxe3 {[%emt 0:00:06]} Nxe3 {[%emt 0:00:22]} 21. Rh8# {[%emt 0:00:05] normal} 1-0

[Event "DVM U12w 2023"]
[Site "Magdeburg"]
[Date "2023.12.27"]
[Round "2"]
[White "Hladeniuk, Yelyzaveta"]
[Black "Daaboul, Dima"]
[Result "1-0"]
[WhiteElo "1362"]
[BlackElo "1184"]
[PlyCount "35"]
[EventDate "2022.12.27"]
[EventType "team-tourn"]
[EventRounds "7"]
[EventCountry "GER"]
[TimeControl "40/5400+30:1800+30"]
[WhiteClock "1:17:39"]
[BlackClock "0:49:02"]

1. d4 {[%emt 0:00:05]} Nf6 {[%emt 0:00:11]} 2. c4 {[%emt 0:00:08]} b6 {[%emt 0:00:10]} 3. Nc3 {[%emt 0:00:20]} Bb7 {[%emt 0:00:20]} 4. Bf4 {[%emt 0:00:30]} e6 {[%emt 0:00:28]} 5. e3 {[%emt 0:00:14]} Bb4 {[%emt 0:00:29]} 6. Rc1 {[%emt 0:01:29]} O-O {[%emt 0:01:52]} 7. Nf3 {[%emt 0:00:26]} d5 {[%emt 0:03:33]} 8. a3 {[%emt 0:03:07]} Bxc3+ {[%emt 0:01:09]} 9. Rxc3 {[%emt 0:00:48]} Ne8 {[%emt 0:07:42]} 10. Be2 {[%emt 0:01:44]} Nd7 {[%emt 0:02:07]} 11. O-O {[%emt 0:02:19]} Rc8 {[%emt 0:02:43]} 12. cxd5 {[%emt 0:01:46]} exd5 {[%emt 0:00:15]} 13. Ne5 {[%emt 0:01:35]} Nef6 {[%emt 0:08:09]} 14. Nc6 {[%emt 0:03:28]} Bxc6 {[%emt 0:05:32]} 15. Rxc6 {[%emt 0:00:15]} Nb8 {[%emt 0:00:32]} 16. Rc2 {[%emt 0:00:44]} Re8 {[%emt 0:08:13]} 17. Bg5 {[%emt 0:00:26]} Nbd7 {[%emt 0:06:33]} 18. Ba6 {[%emt 0:02:27] normal} 1-0

[Event "DVM U12w 2023"]
[Site "Magdeburg"]
[Date "2023.12.27"]
[Round "2"]
[White "Noennig, Lotte"]
[Black "Subocz, Barbara"]
[Result "1-0"]
[WhiteElo "1345"]
[BlackElo "1169"]
[PlyCount "58"]
[EventDate "2022.12.27"]
[EventType "team-tourn"]
[EventRounds "7"]
[EventCountry "GER"]
[TimeControl "40/5400+30:1800+30"]
[WhiteClock "1:08:45"]
[BlackClock "1:00:56"]

1. e4 {[%emt 0:00:02]} e5 {[%emt 0:00:00]} 2. Nf3 {[%emt 0:00:14]} Nc6 {[%emt 0:00:00]} 3. Bc4 {[%emt 0:00:13]} Nf6 {[%emt 0:00:00]} 4. d3 {[%emt 0:00:17]} Bc5 {[%emt 0:00:00]} 5. c3 {[%emt 0:00:17]} O-O {[%emt 0:01:51]} 6. Nbd2 {[%emt 0:00:17]} d6 {[%emt 0:02:33]} 7. O-O {[%emt 0:00:31]} Be6 {[%emt 0:00:15]} 8. Bb3 {[%emt 0:00:51]} Qd7 {[%emt 0:06:10]} 9. Re1 {[%emt 0:00:36]} Ng4 {[%emt 0:03:55]} 10. Re2 {[%emt 0:00:21]} Qe7 {[%emt 0:07:22]} 11. h3 {[%emt 0:01:10]} Nh6 {[%emt 0:00:37]} 12. Nf1 {[%emt 0:01:02]} Qf6 {[%emt 0:00:27]} 13. Ng3 {[%emt 0:01:08]} Rad8 {[%emt 0:04:51]} 14. Bg5 {[%emt 0:01:50]} Qg6 {[%emt 0:00:37]} 15. Bxd8 {[%emt 0:00:17]} Rxd8 {[%emt 0:00:17]} 16. d4 {[%emt 0:01:01]} exd4 {[%emt 0:00:30]} 17. cxd4 {[%emt 0:01:17]} Bb6 {[%emt 0:00:29]} 18. Kh1 {[%emt 0:07:44]} Na5 {[%emt 0:01:13]} 19. Bc2 {[%emt 0:02:05]} Qf6 {[%emt 0:01:05]} 20. b4 {[%emt 0:03:56]} Nc4 {[%emt 0:00:42]} 21. Bb3 {[%emt 0:00:25]} Na3 {[%emt 0:00:51]} 22. Bxe6 {[%emt 0:00:46]} fxe6 {[%emt 0:00:30]} 23. Qd3 {[%emt 0:00:54]} c5 {[%emt 0:01:16]} 24. Qxa3 {[%emt 0:00:52]} cxd4 {[%emt 0:00:20]} 25. Qd3 {[%emt 0:01:33]} e5 {[%emt 0:01:56]} 26. Qc4+ {[%emt 0:01:59]} Kh8 {[%emt 0:01:36]} 27. Qd5 {[%emt 0:02:05]} Qe7 {[%emt 0:00:48]} 28. Rc1 {[%emt 0:01:33]} Nf7 {[%emt 0:03:20]} 29. Nf5 {[%emt 0:00:59]} Qd7 {[%emt 0:00:33] normal} 1-0

[Event "DVM U12w 2023"]
[Site "Magdeburg"]
[Date "2023.12.27"]
[Round "2"]
[White "Zhou, Leyi Charlotte"]
[Black "Martin, Helene"]
[Result "1-0"]
[WhiteElo "1335"]
[BlackElo "989"]
[PlyCount "31"]
[EventDate "2022.12.27"]
[EventType "team-tourn"]
[EventRounds "7"]
[EventCountry "GER"]
[TimeControl "40/5400+30:1800+30"]
[WhiteClock "1:16:08"]
[BlackClock "0:41:32"]

1. e4 {[%emt 0:00:04]} c5 {[%emt 0:00:05]} 2. Nf3 {[%emt 0:00:07]} Nc6 {[%emt 0:00:06]} 3. c4 {[%emt 0:00:13]} g6 {[%emt 0:00:10]} 4. Nc3 {[%emt 0:00:10]} Bg7 {[%emt 0:00:15]} 5. Be2 {[%emt 0:00:23]} d6 {[%emt 0:00:09]} 6. d3 {[%emt 0:01:09]} Nf6 {[%emt 0:08:32]} 7. O-O {[%emt 0:00:16]} O-O {[%emt 0:01:18]} 8. Rb1 {[%emt 0:00:51]} b6 {[%emt 0:07:11]} 9. b3 {[%emt 0:01:21]} Nd7 {[%emt 0:02:08]} 10. Bb2 {[%emt 0:02:47]} Nde5 {[%emt 0:02:58]} 11. h3 {[%emt 0:03:41]} a6 {[%emt 0:09:48]} 12. Re1 {[%emt 0:03:01]} Rb8 {[%emt 0:11:37]} 13. a3 {[%emt 0:02:37]} e6 {[%emt 0:03:26]} 14. Qd2 {[%emt 0:01:15]} d5 {[%emt 0:08:14]} 15. exd5 {[%emt 0:01:08]} exd5 {[%emt 0:00:31]} 16. Nxe5 {[%emt 0:03:19] normal} 1-0

[Event "DVM U12w 2023"]
[Site "Magdeburg"]
[Date "2023.12.27"]
[Round "2"]
[White "Busch, Lara Sophie"]
[Black "Fruth, Julia"]
[Result "1-0"]
[WhiteElo "1330"]
[BlackElo "1296"]
[PlyCount "46"]
[EventDate "2022.12.27"]
[EventType "team-tourn"]
[EventRounds "7"]
[EventCountry "GER"]
[TimeControl "40/5400+30:1800+30"]
[WhiteClock "1:08:54"]
[BlackClock "0:54:02"]

1. e4 {[%emt 0:00:04]} c5 {[%emt 0:00:06]} 2. Nf3 {[%emt 0:00:06]} d6 {[%emt 0:00:10]} 3. Bb5+ {[%emt 0:00:19]} Nd7 {[%emt 0:00:31]} 4. Nc3 {[%emt 0:01:38]} e6 {[%emt 0:03:48]} 5. a3 {[%emt 0:02:16]} a6 {[%emt 0:02:23]} 6. Bxd7+ {[%emt 0:00:48]} Bxd7 {[%emt 0:00:24]} 7. d3 {[%emt 0:00:56]} Be7 {[%emt 0:02:30]} 8. b4 {[%emt 0:01:52]} Qc7 {[%emt 0:03:48]} 9. Bb2 {[%emt 0:03:08]} Nf6 {[%emt 0:03:13]} 10. O-O {[%emt 0:01:42]} O-O {[%emt 0:01:18]} 11. h3 {[%emt 0:00:27]} Qb6 {[%emt 0:06:53]} 12. e5 {[%emt 0:04:56]} dxe5 {[%emt 0:00:59]} 13. Nxe5 {[%emt 0:00:16]} cxb4 {[%emt 0:00:43]} 14. Nxd7 {[%emt 0:01:12]} Nxd7 {[%emt 0:00:27]} 15. axb4 {[%emt 0:01:26]} Qxb4 {[%emt 0:01:15]} 16. Ba3 {[%emt 0:01:52]} Qxc3 {[%emt 0:02:03]} 17. Bxe7 {[%emt 0:00:09]} Rfe8 {[%emt 0:00:54]} 18. Ra3 {[%emt 0:02:13]} Qd4 {[%emt 0:02:54]} 19. Bg5 {[%emt 0:01:18]} Rac8 {[%emt 0:01:54]} 20. Rb3 {[%emt 0:01:40]} b5 {[%emt 0:01:56]} 21. Be3 {[%emt 0:00:39]} Qd6 {[%emt 0:02:30]} 22. Qd2 {[%emt 0:02:45]} Red8 {[%emt 0:02:36]} 23. Ra1 {[%emt 0:01:24]} Rc6 {[%emt 0:04:43] normal} 1-0